fUSD/lending_fUSD_20260128
["ID","MTS","AMOUNT","RATE_DAILY","PERIOD"]
[403886554,1769629842134,-150.00325586,0.00030945,43]
[403886555,1769629842144,-158.77791206,0.00031332,2]
[403886556,1769629842155,-208.43,0.000316,14]
[403886557,1769629842165,-1000.0,0.00031937,2]
[403886558,1769629842175,-150.00325586,0.00032282,46]
[403886559,1769629842184,-155.0,0.00032398,2]
[403886560,1769629842194,-186.36202968,0.00032877,2]
[403886561,1769629842204,-162.07,0.000329,14]
[403886562,1769629842214,-220.05,0.000329,2]
[403886563,1769629842225,-510.39,0.000329,14]
[403886564,1769629842235,-1728.13,0.000329,14]
[403886565,1769629842251,-1000.0,0.00033051,2]
[403886566,1769629842260,-625.132,0.00033182,2]
[403886567,1769629842270,-1333.0,0.00033182,2]
[403886568,1769629842280,-1408.0,0.00033182,2]
[403886569,1769629842290,-3477.0,0.00033182,2]
[403886570,1769629842300,-184.0,0.00033182,2]
[403886571,1769629842310,-1270.0,0.00033182,2]
[403886572,1769629842320,-567.0,0.00033182,2]
[403886573,1769629842330,-6572.0,0.00033182,2]
[403886574,1769629842340,-5930.0,0.00033182,2]
[403886575,1769629842351,-625.31,0.000332,30]
[403886576,1769629842361,-160.57192077,0.00033208,2]
[403886577,1769629842371,-1500.0,0.000334,2]
[403886578,1769629842380,-150.00325586,0.00033618,50]
[403886579,1769629842390,-568.23,0.00033882,2]
[403886580,1769629842399,-1000.0,0.00034165,2]
[403886581,1769629842409,-1406.74876121,0.00034324,30]
[403886582,1769629842419,-152.0,0.00034426,3]
[403886583,1769629842429,-200.0,0.00034455,2]
[403886584,1769629842439,-779.49662259,0.00034849,120]
[403886585,1769629842453,-150.00325596,0.00034954,54]
[403886586,1769629842463,-568.23,0.00035576,2]
[403886587,1769629842473,-181.44842283,0.00035589,120]
[403886588,1769629842482,-510.39,0.000356,14]
[403886589,1769629842492,-1999.0,0.00035616,120]
[403886590,1769629842502,-500.0,0.00035616,7]
[403886591,1769629842512,-500.0,0.00035616,7]
[403886592,1769629842522,-500.0,0.00035616,7]
[403886593,1769629842533,-500.0,0.00035616,7]
[403886594,1769629842542,-500.0,0.00035616,7]
[403886595,1769629842552,-612.24408379,0.00035616,7]
[403886596,1769629842562,-500.0,0.00035616,7]
[403886597,1769629842572,-500.0,0.00035616,7]
[403886598,1769629842582,-500.0,0.00035616,7]
[403886599,1769629842592,-500.0,0.00035616,7]
[403886600,1769629842602,-500.0,0.00035616,7]
[403886601,1769629842612,-500.0,0.00035616,7]
[403886602,1769629842623,-2324.318,0.00035705,43]
[403886603,1769629842632,-150.04,0.00035705,43]
[403886604,1769629842642,-308.32,0.00035725,2]
[403886605,1769629842653,-1000.0,0.00035873,14]
[403886606,1769629842662,-1000.0,0.00036147,14]
[403886607,1769629842672,-184.0,0.00036182,2]
[403886608,1769629842684,-1270.0,0.00036182,2]
[403886609,1769629842694,-6572.0,0.00036182,2]
[403886610,1769629842704,-338.828,0.00036182,2]
[403886611,1769629842716,-175.49200921,0.00036291,57]
[403886612,1769629842726,-1000.0,0.00036421,14]
[403886613,1769629842736,-501.7,0.00036695,120]
[403886614,1769629842745,-1730.0,0.00036695,14]
[403886615,1769629842755,-1728.13,0.000367,14]
[403886616,1769629842766,-1999.0,0.00036712,120]
[403886618,1769629842775,-501.7,0.0003675,120]
[403886619,1769629842785,-1000.0,0.00036969,14]
[403886620,1769629842795,-220.05,0.00037,2]
[403886621,1769629842805,-245.30542666,0.00037057,10]
[403886622,1769629842815,-308.32,0.00037095,2]
[403886623,1769629842826,-1500.0,0.000371,2]
[403886624,1769629842841,-262.5,0.00037106,30]
[403886625,1769629842851,-1000.0,0.00037243,14]
[403886626,1769629842862,-568.23,0.0003727,2]
[403886627,1769629842871,-162.07,0.000373,14]
[403886628,1769629842882,-1000.0,0.00037517,14]
[403886629,1769629842891,-510.39,0.000376,14]
[403886630,1769629842903,-175.49200921,0.00037627,61]
[403886631,1769629842914,-1361.5,0.00037654,30]
[403886632,1769629842925,-1000.0,0.00037791,14]
[403886633,1769629842936,-151.0,0.00037805,14]
[403886634,1769629842946,-1999.0,0.00037808,120]
[403886635,1769629842955,-209.74644207,0.00037819,120]
[403886637,1769629842966,-207.36177663,0.00037819,120]
[403886638,1769629842979,-505.13,0.00038,30]
[403886639,1769629842989,-250.0,0.00038,45]
[403886641,1769629843134,-1000.0,0.00038065,14]
[403886642,1769629843144,-1361.5,0.00038203,30]
[403886643,1769629843153,-160.57192077,0.0003831,2]
[403886644,1769629843163,-300.0,0.00038356,120]
[403886645,1769629843172,-300.0,0.00038356,120]
[403886646,1769629843182,-300.0,0.00038356,120]
[403886647,1769629843191,-300.0,0.00038356,120]
[403886648,1769629843201,-300.0,0.00038356,120]
[403886649,1769629843210,-300.0,0.00038356,120]
[403886650,1769629843219,-300.0,0.00038356,120]
[403886651,1769629843229,-300.0,0.00038356,120]
[403886652,1769629843239,-300.0,0.00038356,120]
[403886653,1769629843248,-152.231005,0.00038356,120]
[403886654,1769629843257,-300.0,0.00038356,120]
[403886655,1769629843266,-300.0,0.00038356,120]
[403886656,1769629843275,-300.0,0.00038356,120]
[403886657,1769629843285,-300.0,0.00038356,120]
[403886658,1769629843294,-300.0,0.00038356,120]
[403886659,1769629843303,-300.0,0.00038356,120]
[403886660,1769629843313,-300.0,0.00038356,120]
[403886661,1769629843322,-300.0,0.00038356,120]
[403886662,1769629843331,-300.0,0.00038356,120]
[403886663,1769629843342,-300.0,0.00038356,120]
[403886664,1769629843351,-300.0,0.00038356,120]
[403886665,1769629843361,-300.0,0.00038356,120]
[403886666,1769629843370,-300.0,0.00038356,120]
[403886667,1769629843390,-300.0,0.00038356,120]
[403886668,1769629843400,-300.0,0.00038356,120]
[403886669,1769629843410,-300.0,0.00038356,120]
[403886670,1769629843420,-300.0,0.00038356,120]
[403886671,1769629843431,-300.0,0.00038356,120]
[403886672,1769629843441,-300.0,0.00038356,120]
[403886673,1769629843451,-300.0,0.00038356,120]
[403886674,1769629843461,-300.0,0.00038356,120]
[403886675,1769629843471,-300.0,0.00038356,120]
[403886676,1769629843481,-300.0,0.00038356,120]
[403886677,1769629843491,-300.0,0.00038356,120]
[403886678,1769629843500,-300.0,0.00038356,120]
[403886679,1769629843510,-300.0,0.00038356,120]
[403886680,1769629843521,-300.0,0.00038356,120]
[403886681,1769629843530,-300.0,0.00038356,120]
[403886682,1769629843541,-300.0,0.00038356,120]
[403886683,1769629843551,-300.0,0.00038356,120]
[403886684,1769629843560,-300.0,0.00038356,120]
[403886685,1769629843569,-300.0,0.00038356,120]
[403886686,1769629843579,-300.0,0.00038356,120]
[403886687,1769629843588,-300.0,0.00038356,120]
[403886688,1769629843598,-300.0,0.00038356,120]
[403886689,1769629843607,-300.0,0.00038356,120]
[403886690,1769629843618,-300.0,0.00038356,120]
[403886691,1769629843628,-300.0,0.00038356,120]
[403886693,1769629843638,-300.0,0.00038356,120]
[403886696,1769629843647,-300.0,0.00038356,120]
[403886698,1769629843656,-300.0,0.00038356,120]
[403886699,1769629843665,-300.0,0.00038356,120]
[403886700,1769629843680,-300.0,0.00038356,120]
[403886701,1769629843689,-300.0,0.00038356,120]
[403886703,1769629843699,-300.0,0.00038356,120]
[403886704,1769629843716,-300.0,0.00038356,120]
[403886706,1769629843725,-300.0,0.00038356,120]
[403886707,1769629843735,-300.0,0.00038356,120]
[403886709,1769629843745,-300.0,0.00038356,120]
[403886711,1769629843756,-300.0,0.00038356,120]
[403886713,1769629843765,-300.0,0.00038356,120]
[403886714,1769629843775,-300.0,0.00038356,120]
[403886716,1769629843784,-300.0,0.00038356,120]
[403886717,1769629843794,-300.0,0.00038356,120]
[403886718,1769629843803,-300.0,0.00038356,120]
[403886719,1769629843813,-300.0,0.00038356,120]
[403886720,1769629843822,-300.0,0.00038356,120]
[403886721,1769629843831,-300.0,0.00038356,120]
[403886722,1769629843841,-300.0,0.00038356,120]
[403886723,1769629843851,-300.0,0.00038356,120]
[403886724,1769629843860,-151.0,0.00038356,120]
[403886725,1769629843870,-300.0,0.00038356,120]
[403886726,1769629843882,-300.0,0.00038356,120]
[403886727,1769629843893,-300.0,0.00038356,120]
[403886728,1769629843902,-300.0,0.00038356,120]
[403886729,1769629843914,-300.0,0.00038356,120]
[403886730,1769629843923,-300.0,0.00038356,120]
[403886731,1769629843938,-300.0,0.00038356,120]
[403886732,1769629843948,-300.0,0.00038356,120]
[403886733,1769629843958,-300.0,0.00038356,120]
[403886734,1769629843968,-300.0,0.00038356,120]
[403886735,1769629843978,-300.0,0.00038356,120]
[403886736,1769629843988,-300.0,0.00038356,120]
[403886737,1769629843998,-300.0,0.00038356,120]
[403886738,1769629844008,-300.0,0.00038356,120]
[403886739,1769629844018,-300.0,0.00038356,120]
[403886740,1769629844028,-300.0,0.00038356,120]
[403886741,1769629844039,-300.0,0.00038356,120]
[403886742,1769629844049,-300.0,0.00038356,120]
[403886743,1769629844058,-300.0,0.00038356,120]
[403886744,1769629844068,-300.0,0.00038356,120]
[403886745,1769629844077,-300.0,0.00038356,120]
[403886746,1769629844087,-300.0,0.00038356,120]
[403886747,1769629844096,-300.0,0.00038356,120]
[403886748,1769629844106,-300.0,0.00038356,120]
[403886749,1769629844115,-151.0,0.00038356,120]
[403886750,1769629844125,-151.0,0.00038356,120]
[403886751,1769629844135,-210.677728,0.00038356,120]
[403886752,1769629844145,-151.0,0.00038356,120]
[403886753,1769629844154,-151.0,0.00038356,120]
[403886754,1769629844164,-151.0,0.00038356,120]
[403886755,1769629844174,-277.90398,0.00038356,120]
[403886756,1769629844184,-183.893422,0.00038356,120]
[403886757,1769629844194,-151.0,0.00038356,120]
[403886758,1769629844206,-151.0,0.00038356,120]
[403886759,1769629844216,-151.0,0.00038356,120]
[403886760,1769629844226,-151.0,0.00038356,15]
[403886761,1769629844236,-151.0,0.00038356,120]
[403886762,1769629844245,-151.0,0.00038356,15]
[403886763,1769629844255,-151.0,0.00038356,15]
[403886764,1769629844265,-151.0,0.00038356,120]
[403886765,1769629844274,-151.0,0.00038356,120]
[403886766,1769629844285,-151.0,0.00038356,120]
[403886767,1769629844295,-151.0,0.00038356,120]
[403886768,1769629844305,-151.0,0.00038356,120]
[403886769,1769629844314,-298.870064,0.00038356,120]
[403886770,1769629844324,-151.0,0.00038356,120]
[403886771,1769629844334,-151.0,0.00038356,120]
[403886772,1769629844344,-151.0,0.00038356,20]
[403886773,1769629844354,-151.0,0.00038356,120]
[403886774,1769629844365,-151.0,0.00038356,120]
[403886775,1769629844374,-151.0,0.00038356,120]
[403886776,1769629844383,-151.0,0.00038356,120]
[403886777,1769629844393,-151.0,0.00038356,120]
[403886778,1769629844403,-151.0,0.00038356,120]
[403886779,1769629844412,-151.0,0.00038356,120]
[403886780,1769629844422,-151.0,0.00038356,120]
[403886781,1769629844432,-151.0,0.00038356,120]
[403886782,1769629844442,-151.0,0.00038356,120]
[403886783,1769629844452,-216.414734,0.00038356,120]
[403886784,1769629844462,-151.0,0.00038356,120]
[403886785,1769629844474,-287.434662,0.00038356,120]
[403886786,1769629844490,-151.0,0.00038356,120]
[403886787,1769629844501,-151.0,0.00038356,120]
[403886788,1769629844511,-151.0,0.00038356,120]
[403886789,1769629844522,-521.09,0.000385,30]
[403886790,1769629844532,-501.7,0.0003853,120]
[403886791,1769629844543,-1728.13,0.000386,14]
[403886792,1769629844554,-500.0,0.000387,120]
[403886793,1769629844564,-505.13,0.0003872,30]
[403886794,1769629844573,-1361.5,0.00038751,30]
[403886795,1769629844583,-152.0,0.00038878,4]
[403886796,1769629844594,-468.73517397,0.00038904,120]
[403886797,1769629844604,-175.49200921,0.00038963,65]
[403886798,1769629844615,-568.23,0.00038964,2]
[403886799,1769629844625,-1000.0,0.00039,2]
[403886800,1769629844634,-1000.0,0.00039,5]
[403886801,1769629844644,-1000.0,0.00039,7]
[403886802,1769629844654,-1000.0,0.00039,14]
[403886803,1769629844665,-1000.0,0.00039,30]
[403886804,1769629844678,-184.0,0.00039182,2]
[403886805,1769629844687,-1269.0,0.00039182,2]
[403886806,1769629844697,-150.0,0.00039194,7]
[403886807,1769629844707,-150.0,0.00039194,7]
[403886808,1769629844719,-150.0,0.00039194,7]
[403886809,1769629844729,-191.03050609,0.00039194,7]
[403886810,1769629844738,-150.0,0.00039194,7]
[403886811,1769629844749,-150.0,0.00039194,7]
[403886812,1769629844759,-150.0,0.00039194,7]
[403886813,1769629844768,-150.0,0.00039194,7]
[403886814,1769629844778,-150.0,0.00039194,7]
[403886815,1769629844787,-150.0,0.00039194,7]
[403886816,1769629844797,-152.41922063,0.00039194,7]
[403886817,1769629844806,-150.0,0.00039194,7]
[403886818,1769629844815,-361.37453716,0.00039194,7]
[403886819,1769629844825,-150.0,0.00039194,7]
[403886820,1769629844835,-150.0,0.00039194,7]
[403886821,1769629844843,-150.0,0.00039194,7]
[403886822,1769629844852,-150.0,0.00039194,7]
[403886823,1769629844862,-150.0,0.00039194,7]
[403886824,1769629844875,-1550.57850947,0.00039199,2]
[403886825,1769629844884,-1550.57850947,0.00039199,2]
[403886826,1769629844894,-880.0545839,0.00039199,2]
[403886827,1769629844904,-1550.57850947,0.00039199,2]
[403886828,1769629844914,-880.0545839,0.00039199,2]
[403886829,1769629844924,-1550.57850947,0.00039199,2]
[403886830,1769629844934,-191.03050609,0.00039238,7]
[403886831,1769629844944,-152.41922063,0.00039238,7]
[403886832,1769629844953,-361.37453716,0.00039238,7]
[403886833,1769629844962,-150.0,0.00039239,7]
[403886834,1769629844972,-150.0,0.00039239,7]
[403886835,1769629844981,-150.0,0.00039241,7]
[403886836,1769629844991,-150.0,0.00039244,7]
[403886837,1769629845000,-150.0,0.00039275,7]
[403886838,1769629845010,-191.03050609,0.00039282,7]
[403886839,1769629845019,-152.41922063,0.00039282,7]
[403886840,1769629845032,-361.37453716,0.00039282,7]
[403886841,1769629845041,-150.0,0.00039283,7]
[403886842,1769629845055,-150.0,0.00039284,7]
[403886843,1769629845065,-150.0,0.00039289,7]
[403886844,1769629845075,-150.0,0.00039294,7]
[403886845,1769629845085,-1361.5,0.00039299,120]
[403886846,1769629845095,-191.03050609,0.00039326,7]
[403886847,1769629845104,-152.41922063,0.00039326,7]
[403886848,1769629845114,-361.37453716,0.00039326,7]
[403886849,1769629845123,-150.0,0.00039327,7]
[403886850,1769629845134,-150.0,0.00039329,7]
[403886851,1769629845144,-150.0,0.00039336,7]
[403886852,1769629845154,-150.0,0.00039344,7]
[403886853,1769629845164,-150.0,0.00039355,7]
[403886854,1769629845174,-150.0,0.00039362,7]
[403886855,1769629845184,-191.03050609,0.0003937,7]
[403886856,1769629845194,-152.41922063,0.0003937,7]
[403886857,1769629845204,-361.37453716,0.0003937,7]
[403886858,1769629845214,-150.0,0.00039372,7]
[403886859,1769629845224,-150.0,0.00039374,7]
[403886860,1769629845233,-150.0,0.00039383,7]
[403886861,1769629845243,-150.0,0.00039383,7]
[403886862,1769629845257,-150.0,0.00039394,7]
[403886863,1769629845268,-191.03050609,0.00039414,7]
[403886864,1769629845279,-152.41922063,0.00039414,7]
[403886865,1769629845289,-361.37453716,0.00039414,7]
[403886866,1769629845299,-150.0,0.00039416,7]
[403886867,1769629845309,-150.0,0.00039419,7]
[403886868,1769629845320,-150.0,0.00039431,7]
[403886869,1769629845330,-150.0,0.00039436,7]
[403886870,1769629845340,-150.0,0.00039436,7]
[403886871,1769629845349,-505.13,0.0003944,30]
[403886872,1769629845359,-150.0,0.00039444,7]
[403886873,1769629845368,-191.03050609,0.00039458,7]
[403886874,1769629845379,-152.41922063,0.00039458,7]
[403886875,1769629845390,-361.37453716,0.00039458,7]
[403886876,1769629845401,-150.0,0.00039461,7]
[403886877,1769629845410,-150.0,0.00039463,7]
[403886878,1769629845421,-150.0,0.00039478,7]
[403886879,1769629845431,-150.0,0.00039494,7]
[403886880,1769629845441,-191.03050609,0.00039502,7]
[403886881,1769629845451,-152.41922063,0.00039502,7]
[403886882,1769629845461,-361.37453716,0.00039502,7]
[403886883,1769629845471,-150.0,0.00039505,7]
[403886884,1769629845482,-150.0,0.00039508,7]
[403886885,1769629845492,-150.0,0.00039517,7]
[403886886,1769629845501,-150.0,0.00039525,7]
[403886887,1769629845511,-150.0,0.00039529,7]
[403886888,1769629845521,-150.0,0.00039529,7]
[403886889,1769629845531,-150.0,0.00039544,7]
[403886890,1769629845541,-191.03050609,0.00039546,7]
[403886891,1769629845551,-152.41922063,0.00039546,7]
[403886892,1769629845560,-361.37453716,0.00039546,7]
[403886893,1769629845571,-150.0,0.0003955,7]
[403886894,1769629845581,-150.0,0.00039553,7]
[403886895,1769629845591,-150.0,0.00039573,7]
[403886896,1769629845600,-150.0,0.00039573,7]
[403886897,1769629845611,-191.03050609,0.0003959,7]
[403886898,1769629845620,-152.41922063,0.0003959,7]
[403886899,1769629845630,-361.37453716,0.0003959,7]
[403886900,1769629845639,-150.0,0.00039594,7]
[403886901,1769629845650,-150.0,0.00039595,7]
[403886902,1769629845659,-150.0,0.00039597,7]
[403886903,1769629845669,-150.0,0.00039598,7]
[403886904,1769629845683,-150.0,0.0003962,7]
[403886905,1769629845692,-191.03050609,0.00039634,7]
[403886906,1769629845702,-152.41922063,0.00039634,7]
[403886907,1769629845712,-361.37453716,0.00039634,7]
[403886908,1769629845722,-150.0,0.00039638,7]
[403886909,1769629845732,-150.0,0.00039643,7]
[403886910,1769629845740,-150.0,0.00039645,7]
[403886911,1769629845751,-150.0,0.00039667,7]
[403886912,1769629845761,-191.03050609,0.00039678,7]
[403886913,1769629845770,-152.41922063,0.00039678,7]
[403886914,1769629845779,-361.37453716,0.00039678,7]
[403886916,1769629845789,-150.0,0.00039678,7]
[403886918,1769629845799,-150.0,0.00039678,7]
[403886920,1769629845808,-150.0,0.00039683,7]
[403886922,1769629845818,-150.0,0.00039688,7]
[403886924,1769629845828,-150.0,0.00039695,7]
[403886925,1769629845838,-150.0,0.00039697,7]
[403886926,1769629845847,-150.0,0.00039715,7]
[403886927,1769629845857,-191.03050609,0.00039722,7]
[403886928,1769629845866,-152.41922063,0.00039722,7]
[403886929,1769629845876,-361.37453716,0.00039722,7]
[403886930,1769629845886,-150.0,0.00039727,7]
[403886931,1769629845896,-150.0,0.00039733,7]
[403886932,1769629845905,-150.0,0.00039738,7]
[403886933,1769629845915,-150.0,0.00039745,7]
[403886934,1769629845925,-150.0,0.00039759,7]
[403886935,1769629845935,-150.0,0.00039762,7]
[403886937,1769629845945,-150.0,0.00039762,7]
[403886938,1769629845955,-191.03050609,0.00039766,7]
[403886939,1769629845965,-152.41922063,0.00039766,7]
[403886940,1769629845974,-361.37453716,0.00039766,7]
[403886941,1769629845984,-150.0,0.00039772,7]
[403886942,1769629845993,-150.0,0.00039778,7]
[403886943,1769629846003,-150.0,0.00039795,7]
[403886944,1769629846013,-150.0,0.00039809,7]
[403886945,1769629846022,-191.03050609,0.0003981,7]
[403886946,1769629846032,-152.41922063,0.0003981,7]
[403886947,1769629846042,-361.37453716,0.0003981,7]
[403886948,1769629846052,-150.0,0.00039816,7]
[403886949,1769629846062,-150.0,0.00039823,7]
[403886950,1769629846073,-150.0,0.00039839,7]
[403886951,1769629846083,-150.0,0.00039845,7]
[403886952,1769629846094,-1361.5,0.00039848,120]
[403886953,1769629846104,-191.03050609,0.00039854,7]
[403886954,1769629846114,-152.41922063,0.00039854,7]
[403886955,1769629846124,-361.37453716,0.00039854,7]
[403886956,1769629846134,-150.0,0.00039857,7]
[403886957,1769629846143,-150.0,0.00039861,7]
[403886958,1769629846153,-150.0,0.00039864,7]
[403886959,1769629846163,-150.0,0.00039864,7]
[403886960,1769629846173,-150.0,0.00039868,7]
[403886961,1769629846183,-150.0,0.00039895,7]
[403886962,1769629846193,-191.03050609,0.00039898,7]
[403886963,1769629846203,-152.41922063,0.00039898,7]
[403886964,1769629846213,-361.37453716,0.00039898,7]
[403886965,1769629846223,-150.0,0.00039904,7]
[403886966,1769629846233,-150.0,0.00039905,7]
[403886967,1769629846243,-150.0,0.00039912,7]
[403886968,1769629846254,-150.0,0.0003992,7]
[403886969,1769629846264,-150.0,0.0003992,7]
[403886970,1769629846273,-150.0,0.0003992,7]
[403886971,1769629846282,-191.03050609,0.00039942,7]
[403886972,1769629846293,-152.41922063,0.00039942,7]
[403886973,1769629846303,-361.37453716,0.00039942,7]
[403886974,1769629846313,-150.0,0.00039945,7]
[403886975,1769629846323,-150.0,0.0003995,7]
[403886976,1769629846332,-150.0,0.00039951,7]
[403886977,1769629846342,-150.0,0.00039951,7]
[403886978,1769629846351,-150.0,0.00039957,7]
[403886979,1769629846361,-191.03050609,0.00039986,7]
[403886980,1769629846370,-152.41922063,0.00039986,7]
[403886982,1769629846380,-361.37453716,0.00039986,7]
[403886983,1769629846390,-150.0,0.00039994,7]
[403886984,1769629846399,-150.0,0.00039995,7]
[403886985,1769629846409,-150.0,0.00039999,7]
[403886986,1769629846419,-6784.00784414,0.0004,120]
[403886987,1769629846429,-150.0,0.00040001,7]
[403886989,1769629846439,-150.0,0.00040002,7]
[403886990,1769629846448,-191.03050609,0.0004003,7]
[403886991,1769629846458,-152.41922063,0.0004003,7]
[403886992,1769629846468,-361.37453716,0.0004003,7]
[403886993,1769629846478,-150.0,0.00040032,7]
[403886995,1769629846488,-150.0,0.00040038,7]
[403886997,1769629846498,-150.0,0.00040045,7]
[403886998,1769629846508,-150.0,0.00040046,7]
[403886999,1769629846518,-150.0,0.00040047,7]
[403887000,1769629846527,-191.03050609,0.00040074,7]
[403887001,1769629846538,-152.41922063,0.00040074,7]
[403887002,1769629846547,-361.37453716,0.00040074,7]
[403887003,1769629846557,-150.0,0.00040081,7]
[403887004,1769629846568,-150.0,0.00040083,7]
[403887005,1769629846578,-150.0,0.00040092,7]
[403887006,1769629846588,-150.0,0.00040093,7]
[403887007,1769629846597,-150.0,0.00040095,7]
[403887008,1769629846607,-191.03050609,0.00040118,7]
[403887009,1769629846617,-152.41922063,0.00040118,7]
[403887010,1769629846627,-361.37453716,0.00040118,7]
[403887011,1769629846637,-150.0,0.00040127,7]
[403887012,1769629846646,-150.0,0.00040137,7]
[403887013,1769629846656,-150.0,0.00040141,7]
[403887014,1769629846665,-150.0,0.00040141,7]
[403887015,1769629846676,-150.0,0.00040145,7]
[403887016,1769629846688,-505.13,0.0004016,30]
[403887017,1769629846698,-191.03050609,0.00040162,7]
[403887018,1769629846708,-152.41922063,0.00040162,7]
[403887019,1769629846719,-361.37453716,0.00040162,7]
[403887020,1769629846729,-150.0,0.00040162,7]
[403887021,1769629846738,-150.0,0.00040162,7]
[403887022,1769629846749,-150.0,0.00040172,7]
[403887023,1769629846759,-150.0,0.00040182,7]
[403887024,1769629846770,-150.0,0.00040188,7]
[403887025,1769629846780,-150.0,0.00040195,7]
[403887026,1769629846790,-150.0,0.00040199,7]
[403887027,1769629846799,-150.0,0.00040199,7]
[403887028,1769629846809,-191.03050609,0.00040206,7]
[403887029,1769629846819,-152.41922063,0.00040206,7]
[403887030,1769629846828,-361.37453716,0.00040206,7]
[403887031,1769629846838,-150.0,0.00040216,7]
[403887032,1769629846848,-150.0,0.00040227,7]
[403887033,1769629846857,-150.0,0.00040235,7]
[403887034,1769629846867,-150.0,0.00040243,7]
[403887035,1769629846877,-150.0,0.00040245,7]
[403887036,1769629846886,-191.03050609,0.0004025,7]
[403887037,1769629846896,-152.41922063,0.0004025,7]
[403887038,1769629846906,-361.37453716,0.0004025,7]
[403887039,1769629846916,-150.0,0.00040261,7]
[403887040,1769629846925,-150.0,0.00040272,7]
[403887041,1769629846935,-150.0,0.00040283,7]
[403887042,1769629846945,-150.0,0.00040283,7]
[403887043,1769629846954,-191.03050609,0.00040294,7]
[403887044,1769629846964,-152.41922063,0.00040294,7]
[403887045,1769629846975,-361.37453716,0.00040294,7]
[403887046,1769629846984,-150.0,0.00040295,7]
[403887047,1769629846994,-510.39,0.000403,14]
[403887048,1769629847004,-175.49200921,0.000403,68]
[403887049,1769629847014,-150.0,0.00040305,7]
[403887050,1769629847024,-150.0,0.00040316,7]
[403887051,1769629847033,-150.0,0.00040323,7]
[403887052,1769629847044,-150.0,0.0004033,7]
[403887053,1769629847054,-150.0,0.0004033,7]
[403887054,1769629847064,-191.03050609,0.00040338,7]
[403887055,1769629847074,-152.41922063,0.00040338,7]
[403887056,1769629847085,-361.37453716,0.00040338,7]
[403887057,1769629847095,-150.0,0.00040345,7]
[403887058,1769629847105,-150.0,0.00040349,7]
[403887059,1769629847114,-150.0,0.00040361,7]
[403887060,1769629847124,-150.0,0.00040367,7]
[403887061,1769629847135,-150.0,0.00040377,7]
[403887062,1769629847145,-191.03050609,0.00040382,7]
[403887063,1769629847155,-152.41922063,0.00040382,7]
[403887064,1769629847165,-361.37453716,0.00040382,7]
[403887065,1769629847176,-150.0,0.00040394,7]
[403887066,1769629847186,-150.0,0.00040395,7]
[403887067,1769629847196,-1361.5,0.00040396,120]
[403887068,1769629847206,-150.0,0.00040404,7]
[403887069,1769629847215,-150.0,0.00040404,7]
[403887070,1769629847225,-150.0,0.00040406,7]
[403887071,1769629847235,-150.0,0.00040425,7]
[403887072,1769629847246,-191.03050609,0.00040426,7]
[403887073,1769629847257,-152.41922063,0.00040426,7]
[403887074,1769629847267,-361.37453716,0.00040426,7]
[403887075,1769629847277,-150.0,0.00040438,7]
[403887076,1769629847287,-150.0,0.00040446,7]